bitfinex-derivatives/quotes_SOLF0:USTF0_20220104
["timestamp","ask_amount","ask_price","bid_price","bid_amount"]
[1641321328538,5.484,169.01,168.92,7.51429412]
[1641321329738,3.0,169.0,168.92,7.51429412]
[1641321330139,3.0,168.97,168.92,7.51429412]
[1641321330340,5.667,168.97,168.92,7.51429412]
[1641321330541,27.66479,169.02,168.92,7.51429412]
[1641321330740,42.80899447,169.01,168.93,27.66479]
[1641321331141,42.80899447,169.01,168.89,7.51429412]
[1641321331340,46.93599447,169.01,168.89,10.51429412]
[1641321331543,46.93599447,169.01,168.89,7.51429412]
[1641321331741,46.93599447,169.01,168.89,4.0]
[1641321331943,13.60833512,169.01,168.89,4.0]
[1641321332144,13.60833512,169.01,168.88,60.99244935]
[1641321332343,33.32765935,169.03,168.91,7.0]
[1641321332642,23.27177509,169.06,169.02,27.66479]
[1641321332843,23.27177509,169.06,169.02,33.21979]
[1641321333742,23.27177509,169.06,169.02,27.66479]
[1641321334346,23.27177509,169.06,168.92,4.0]
[1641321334542,13.93558272,169.06,168.93,61.6522]
[1641321334743,27.66479,169.04,169.03,7.21474844]
[1641321336243,27.66479,169.04,168.95,7.21474844]
[1641321337848,30.66479,169.04,168.95,7.21474844]
[1641321339149,30.66479,169.04,168.94,20.51587915]
[1641321340748,27.66479,169.04,168.94,20.51587915]
[1641321342052,30.66479,169.04,168.94,20.51587915]
[1641321342252,30.66479,169.04,168.94,7.21474844]
[1641321342452,3.0,169.03,168.94,7.21474844]
[1641321342651,3.0,169.01,168.94,7.21474844]
[1641321342853,6.176,169.01,168.93,61.6522]
[1641321343059,9.176,169.01,168.93,61.6522]
[1641321343454,3.0,169.0,168.93,61.6522]
[1641321343753,9.176,169.01,168.93,61.6522]
[1641321344354,9.176,169.01,168.94,9.04159565]
[1641321345054,6.176,169.01,168.94,9.04159565]
[1641321345554,3.0,169.0,168.94,9.04159565]
[1641321345756,3.0,168.98,168.94,9.04159565]
[1641321345956,3.0,168.97,168.94,9.04159565]
[1641321346155,8.856,168.97,168.94,9.04159565]
[1641321346759,36.52079,168.97,168.94,9.04159565]
[1641321347459,33.52079,168.97,168.89,22.34399786]
[1641321348458,36.52079,168.97,168.89,22.34399786]
[1641321348858,64.18558,168.97,168.89,22.34399786]
[1641321351160,3.0,168.94,168.89,22.34399786]
[1641321351562,3.0,168.93,168.89,22.34399786]
[1641321351762,3.0,168.91,168.86,50.11171934]
[1641321351963,6.504,168.93,168.81,82.20462631]
[1641321352166,3.0,168.87,168.81,82.20462631]
[1641321352363,5.154,168.87,168.81,82.20462631]
[1641321352565,5.154,168.87,168.83,9.04182583]
[1641321353565,3.0,168.94,168.83,9.04182583]
[1641321353765,3.0,168.95,168.83,9.04182583]
[1641321353966,3.0,168.94,168.83,9.04182583]
[1641321354166,6.269,168.94,168.79,61.3042]
[1641321354366,6.269,168.94,168.85,33.40358083]
[1641321354765,3.0,168.9,168.85,33.40358083]
[1641321354967,6.526,168.9,168.85,33.40358083]
[1641321355168,9.526,168.9,168.85,33.40358083]
[1641321355469,3.0,168.89,168.85,33.40358083]
[1641321355668,9.526,168.9,168.88,12.52607012]
[1641321356270,6.526,168.9,168.88,12.52607012]
[1641321357775,9.526,168.9,168.88,12.52607012]
[1641321357973,6.526,168.9,168.88,12.52607012]
[1641321358173,2.48013943,168.89,168.86,4.17552003]
[1641321358773,27.66479,168.88,168.86,4.17552003]
[1641321358973,27.66479,168.88,168.85,4.17552003]
[1641321359375,30.66479,168.88,168.85,4.17552003]
[1641321359674,4.1756736,168.86,168.85,4.17552003]
[1641321359874,10.9816736,168.86,168.85,4.17552003]
[1641321361476,13.9816736,168.86,168.85,4.17552003]
[1641321361677,13.9816736,168.86,168.82,12.52607012]
[1641321361876,3.0,168.85,168.82,12.52607012]
[1641321362478,3.0,168.85,168.79,2.34682266]
[1641321362678,2.51869669,168.85,168.79,2.34682266]
[1641321362880,27.66479,168.83,168.79,2.34682266]
[1641321364681,27.66479,168.83,168.79,12.52607012]
[1641321365384,4.217,168.86,168.79,12.52607012]
[1641321365585,27.66479,168.88,168.8,12.52607012]
[1641321366885,27.66479,168.88,168.83,12.52607012]
[1641321367587,27.66479,168.88,168.84,12.52607012]
[1641321367786,3.0,168.86,168.84,12.52607012]
[1641321367989,8.004,168.86,168.84,12.52607012]
[1641321368689,8.004,168.86,168.81,2.34682266]
[1641321368890,27.66479,168.83,168.81,2.34682266]
[1641321369289,30.66479,168.83,168.77,12.52607012]
[1641321369489,27.66479,168.83,168.77,12.52607012]
[1641321370389,2.51875087,168.82,168.77,14.18363923]
[1641321370590,8.33075087,168.82,168.77,14.18363923]
[1641321371190,5.812,168.82,168.77,14.18363923]
[1641321371393,8.812,168.82,168.77,14.18363923]
[1641321371890,5.812,168.82,168.77,21.38840358]
[1641321372790,5.812,168.82,168.77,14.18363923]
[1641321372993,2.51939306,168.81,168.77,1.65756911]
[1641321373794,5.812,168.82,168.77,1.65756911]
[1641321374597,2.51958338,168.81,168.77,1.65756911]
[1641321376696,2.51958338,168.81,168.76,1.65756911]
[1641321377295,3.0,168.79,168.76,1.65756911]
[1641321377495,3.0,168.79,168.75,12.52607012]
[1641321377695,3.0,168.8,168.75,12.52607012]
[1641321377895,7.05258338,168.82,168.75,12.52607012]
[1641321378195,3.0,168.81,168.75,12.52607012]
[1641321378596,12.52634281,168.77,168.71,33.40358083]
[1641321378795,17.19234281,168.77,168.68,12.52607012]
[1641321378998,44.85713281,168.77,168.68,12.52607012]
[1641321379497,47.85713281,168.77,168.68,12.52607012]
[1641321379698,44.85713281,168.77,168.68,19.73107965]
[1641321380598,44.85713281,168.77,168.69,12.52607012]
[1641321380801,47.85713281,168.77,168.69,12.52607012]
[1641321381102,27.66479,168.71,168.69,12.52607012]
[1641321381601,27.66479,168.71,168.7,33.40358083]
[1641321382903,5.441,168.72,168.7,33.40358083]
[1641321383302,26.41997704,168.73,168.7,33.40358083]
[1641321384604,29.41997704,168.73,168.66,33.40358083]
[1641321384803,33.00397704,168.73,168.66,33.40358083]
[1641321385003,27.66479,168.68,168.66,33.40358083]
[1641321385204,6.322,168.68,168.66,33.40358083]
[1641321385602,6.322,168.68,168.65,51.84807875]
[1641321386203,26.41997704,168.73,168.65,51.84807875]
[1641321386405,26.41997704,168.73,168.64,33.40358083]
[1641321387104,54.08476704,168.73,168.64,33.40358083]
[1641321387306,54.08476704,168.73,168.65,33.40358083]
[1641321387505,3.0,168.71,168.65,33.40358083]
[1641321387706,3.0,168.67,168.65,33.40358083]
[1641321387907,3.0,168.66,168.65,33.40358083]
[1641321388105,3.0,168.66,168.62,18.44449792]
[1641321388305,7.677,168.67,168.62,18.44449792]
[1641321388508,3.0,168.66,168.58,40.64982893]
[1641321388707,3.0,168.65,168.58,40.64982893]
[1641321388907,55.32958,168.59,168.58,40.64982893]
[1641321389105,60.94958,168.59,168.58,40.64982893]
[1641321389905,60.94958,168.59,168.58,7.20500953]
[1641321390110,5.62,168.59,168.52,7.20500953]
[1641321390307,6.494,168.63,168.52,7.20500953]
[1641321390707,6.494,168.63,168.53,3.0]
[1641321390907,6.494,168.63,168.54,3.0]
[1641321391107,6.494,168.63,168.56,27.66479]
[1641321391308,40.19113281,168.68,168.56,30.66479]
[1641321391513,40.19113281,168.68,168.57,63.8073]
[1641321392111,27.66479,168.68,168.58,7.20500953]
[1641321392511,30.66479,168.68,168.58,7.20500953]
[1641321392710,3.0,168.67,168.58,7.20500953]
[1641321392915,7.308,168.67,168.58,7.20500953]
[1641321393114,27.66479,168.61,168.58,7.20500953]
[1641321393314,33.33279,168.61,168.51,50.11638895]
[1641321394413,36.33279,168.61,168.51,50.11638895]
[1641321394613,33.33279,168.61,168.51,50.11638895]
[1641321394815,33.33279,168.61,168.48,64.5275]
[1641321395014,27.66479,168.58,168.48,64.5275]
[1641321395214,27.66479,168.58,168.52,3.0]
[1641321395413,27.66479,168.58,168.51,3.0]
[1641321395813,27.66479,168.58,168.48,64.5275]
[1641321396015,27.66479,168.58,168.53,3.0]
[1641321396412,27.66479,168.58,168.52,3.0]
[1641321396613,27.66479,168.58,168.5,3.0]
[1641321397016,27.66479,168.58,168.53,12.54520371]
[1641321398017,27.66479,168.58,168.44,50.11638895]
[1641321398316,32.39279,168.58,168.44,50.11638895]
[1641321398516,3.0,168.57,168.44,53.11638895]
[1641321398917,3.0,168.57,168.46,3.0]
[1641321399115,32.39279,168.58,168.47,27.66479]
[1641321399320,32.39279,168.58,168.47,3.0]
[1641321399518,35.39279,168.58,168.47,3.0]
[1641321399715,32.39279,168.58,168.44,27.66479]
[1641321399919,35.39279,168.58,168.42,3.0]
[1641321400119,3.0,168.57,168.42,3.0]
[1641321400318,32.39279,168.58,168.46,3.0]
[1641321400522,27.66479,168.58,168.46,3.0]
[1641321401118,27.66479,168.58,168.47,3.0]
[1641321401318,27.66479,168.58,168.44,27.66479]
[1641321401319,27.66479,168.58,168.43,3.0]
[1641321401520,32.46279,168.58,168.41,3.0]
[1641321401719,32.46279,168.58,168.4,64.0863]
[1641321401921,3.0,168.48,168.4,64.0863]
[1641321402120,5.081,168.48,168.4,64.0863]
[1641321402719,5.081,168.48,168.4,67.0863]
[1641321402920,5.081,168.48,168.41,3.0]
[1641321403120,5.081,168.48,168.41,27.66479]
[1641321403721,5.081,168.48,168.4,64.0863]
[1641321404825,5.081,168.48,168.33,3.0]
[1641321405028,27.66479,168.42,168.34,27.66479]
[1641321405226,34.14979,168.42,168.34,27.66479]
[1641321405626,6.485,168.42,168.34,27.66479]
[1641321406226,6.485,168.42,168.41,3.0]
[1641321406429,6.485,168.42,168.35,60.5853]
[1641321406726,6.485,168.42,168.33,3.0]
[1641321407226,27.66479,168.4,168.33,3.0]
[1641321407626,27.66479,168.4,168.31,27.66479]
[1641321408428,27.66479,168.4,168.31,30.66479]
[1641321408627,33.49345425,168.43,168.31,30.66479]
[1641321408827,33.49345425,168.43,168.32,3.0]
[1641321409028,27.66479,168.41,168.32,3.0]
[1641321409230,27.66479,168.41,168.35,3.0]
[1641321409430,27.66479,168.41,168.34,3.0]
[1641321409631,27.66479,168.41,168.33,3.0]
[1641321409838,5.593,168.44,168.33,3.0]
[1641321410027,33.49345425,168.45,168.31,27.66479]
[1641321410231,33.49345425,168.45,168.36,3.0]
[1641321410429,33.49345425,168.45,168.31,27.66479]
[1641321410629,33.49345425,168.45,168.36,3.0]
[1641321410828,33.49345425,168.52,168.38,3.0]
[1641321411028,61.15824425,168.52,168.39,59.8189]
[1641321411832,64.15824425,168.52,168.39,59.8189]
[1641321412031,30.66479,168.52,168.39,59.8189]
[1641321412231,3.0,168.48,168.37,33.49345425]
[1641321412430,3.0,168.46,168.37,33.49345425]
[1641321412630,4.175,168.48,168.37,33.49345425]
[1641321412831,3.0,168.45,168.37,33.49345425]
[1641321413031,27.66479,168.41,168.37,33.49345425]
[1641321413233,32.05379,168.41,168.37,33.49345425]
[1641321413434,32.05379,168.41,168.33,59.7228]
[1641321413835,35.05379,168.41,168.33,59.7228]
[1641321414036,32.05379,168.41,168.33,59.7228]
[1641321414237,3.0,168.39,168.33,59.7228]
[1641321414538,3.0,168.39,168.31,27.66479]
[1641321414736,3.0,168.4,168.31,27.66479]
[1641321414937,35.05379,168.41,168.31,27.66479]
[1641321415139,27.66479,168.37,168.3,92.52335425]
[1641321415340,27.66479,168.37,168.29,59.9647]
[1641321415540,34.35479,168.37,168.28,61.15824425]
[1641321416140,37.35479,168.37,168.29,6.12807154]
[1641321416340,3.0,168.36,168.29,6.12807154]
[1641321416750,34.35479,168.37,168.29,6.12807154]
[1641321416940,3.0,168.36,168.29,6.12807154]
[1641321417143,27.66479,168.34,168.29,6.12807154]
[1641321418347,27.66479,168.37,168.28,27.66479]
[1641321418546,2.93784281,168.33,168.29,1.25090425]
[1641321418845,33.49345425,168.37,168.29,1.25090425]
[1641321419746,61.15824425,168.41,168.29,1.25090425]
[1641321420147,61.15824425,168.41,168.29,4.25090425]
[1641321421047,10.62377083,168.4,168.31,27.66479]
[1641321421849,4.18730325,168.36,168.35,4.18730325]
[1641321422351,3.25e-06,168.36,168.35,4.18730325]
[1641321422548,33.49345425,168.43,168.35,4.18730325]
[1641321422749,33.49345425,168.43,168.35,10.41530325]
[1641321422950,33.49345425,168.43,168.36,3.0]
[1641321423150,33.49345425,168.44,168.38,27.66479]
[1641321423850,33.49345425,168.44,168.36,27.66479]
[1641321424252,33.49345425,168.44,168.31,63.5354]
[1641321424451,3.0,168.47,168.33,33.49345425]
[1641321424653,3.0,168.4,168.33,33.49345425]
[1641321424852,8.771,168.4,168.33,33.49345425]
[1641321425050,5.771,168.4,168.33,33.49345425]
[1641321425452,5.771,168.4,168.31,30.66479]
[1641321425853,33.49345425,168.41,168.31,30.66479]
[1641321426052,33.49345425,168.41,168.31,36.82079]
[1641321426252,33.49345425,168.41,168.32,3.0]
[1641321426753,10.61485736,168.42,168.38,3.0]
[1641321426953,10.61485736,168.42,168.38,7.146]
[1641321427254,10.61485736,168.42,168.41,30.66479]
[1641321427455,15.09272549,168.47,168.41,30.66479]
[1641321427654,50.11638895,168.5,168.43,3.0]
[1641321427853,50.11638895,168.5,168.43,5.402]
[1641321428053,77.78117895,168.54,168.48,3.0]
[1641321428254,50.11638895,168.54,168.48,6.364]
[1641321429055,50.11638895,168.54,168.51,12.55135315]
[1641321429254,12.55135315,168.59,168.51,12.55135315]
[1641321429854,30.66479,168.6,168.51,12.55135315]
[1641321430056,53.11638895,168.59,168.41,40.21614315]
[1641321430253,3.0,168.57,168.41,40.21614315]
[1641321430453,50.11638895,168.59,168.41,40.21614315]
[1641321430655,3.0,168.54,168.41,12.55135315]
[1641321430854,8.784,168.54,168.41,12.55135315]
[1641321431254,12.55512142,168.47,168.38,12.55135315]
[1641321431455,18.11012142,168.47,168.38,12.55135315]
[1641321432457,12.55512142,168.44,168.36,12.55135315]
[1641321432760,12.55512142,168.44,168.36,15.55135315]
[1641321432956,12.55512142,168.44,168.36,12.55135315]
[1641321433156,12.55512142,168.45,168.36,12.55135315]
[1641321433558,12.55512142,168.45,168.36,15.55135315]
[1641321433758,12.55512142,168.45,168.36,22.19335315]
[1641321433958,12.55512142,168.45,168.37,3.0]
[1641321434358,27.66479,168.52,168.44,3.0]
[1641321434558,27.66479,168.52,168.44,7.136]
[1641321434758,50.11638895,168.54,168.47,3.0]
[1641321434959,50.11638895,168.54,168.46,3.0]
[1641321435158,50.11638895,168.54,168.47,27.66479]
[1641321435359,27.66479,168.6,168.47,27.66479]
[1641321435759,27.66479,168.6,168.47,30.66479]
[1641321436160,27.66479,168.6,168.47,27.66479]
[1641321436362,27.66479,168.6,168.5,3.0]
[1641321436662,27.66479,168.6,168.5,6.639]
[1641321437461,27.66479,168.6,168.47,27.66479]
[1641321437661,3.0,168.58,168.47,27.66479]
[1641321438161,3.0,168.58,168.45,60.1503]
[1641321438361,27.66479,168.6,168.45,60.1503]
[1641321438561,27.66479,168.6,168.45,64.4693]
[1641321438962,3.0,168.59,168.45,64.4693]
[1641321439161,27.66479,168.53,168.45,64.4693]
[1641321439564,27.66479,168.6,168.45,64.4693]
[1641321439962,27.66479,168.6,168.49,3.0]
[1641321440162,27.66479,168.6,168.49,4.29]
[1641321440362,30.66479,168.6,168.49,4.29]
[1641321440563,27.66479,168.6,168.49,4.29]
[1641321441162,27.66479,168.54,168.46,50.11638895]
[1641321441463,27.66479,168.54,168.45,15.51738821]
[1641321442463,27.66479,168.54,168.4,3.0]
[1641321442662,27.66479,168.54,168.39,189.3725]
[1641321442862,27.66479,168.54,168.39,193.3725]
[1641321443064,27.66479,168.54,168.44,3.0]
[1641321443263,27.66479,168.57,168.45,27.66479]
[1641321444362,27.66479,168.57,168.45,30.66479]
[1641321444563,27.66479,168.57,168.45,27.66479]
[1641321444764,27.66479,168.57,168.45,30.66479]
[1641321444964,27.66479,168.57,168.45,27.66479]
[1641321445165,27.66479,168.57,168.48,27.66479]
[1641321445367,27.66479,168.57,168.48,33.29279]
[1641321445770,27.66479,168.57,168.49,3.0]
[1641321446166,27.66479,168.6,168.54,3.0]
[1641321446369,27.66479,168.6,168.54,9.008]
[1641321446766,27.66479,168.6,168.54,6.008]
[1641321447769,50.11638895,168.67,168.54,9.008]
[1641321447970,33.45896679,168.65,168.54,9.008]
[1641321448372,33.45896679,168.65,168.54,6.008]
[1641321448572,33.45896679,168.65,168.53,60.5426]
[1641321448971,33.45896679,168.65,168.53,67.89538643]
[1641321449172,33.45896679,168.66,168.53,67.89538643]
[1641321449371,27.66479,168.6,168.53,67.89538643]
[1641321449571,27.66479,168.6,168.53,7.35278643]
[1641321449971,27.66479,168.6,168.48,27.66479]
[1641321450373,61.12375679,168.63,168.48,30.66479]
[1641321450573,61.12375679,168.63,168.48,35.18879]
[1641321450773,61.12375679,168.63,168.48,32.18879]
[1641321450974,61.12375679,168.63,168.49,3.0]
[1641321451174,9.37924911,168.59,168.51,3.0]
[1641321451373,9.37924911,168.59,168.49,11.35290905]
[1641321451374,9.37924911,168.59,168.57,27.66479]
[1641321451773,9.37924911,168.59,168.54,27.66479]
[1641321451974,33.45896679,168.65,168.54,27.66479]
[1641321452574,33.45896679,168.65,168.54,33.10679]
[1641321453275,33.45896679,168.65,168.6,27.66479]
[1641321453577,9.37924911,168.66,168.6,33.60279]
[1641321454676,33.45896679,168.68,168.6,33.60279]
[1641321454876,33.45896679,168.68,168.6,5.938]
[1641321455277,33.45896679,168.68,168.6,33.60279]
[1641321455677,33.45896679,168.66,168.6,33.60279]
[1641321456478,33.45896679,168.68,168.6,33.60279]
[1641321457280,33.45896679,168.68,168.6,61.26758]
[1641321458281,73.18457296,168.73,168.6,61.26758]
[1641321458282,33.45896679,168.69,168.6,64.26758]
[1641321458780,33.45896679,168.69,168.6,61.26758]
[1641321459581,33.45896679,168.69,168.6,55.32958]
[1641321460483,33.45896679,168.67,168.6,55.32958]
[1641321461283,33.45896679,168.67,168.6,27.66479]
[1641321461683,33.45896679,168.68,168.6,27.66479]
[1641321462283,33.45896679,168.67,168.6,27.66479]
[1641321463282,33.45896679,168.67,168.64,27.66479]
[1641321463686,45.30763533,168.69,168.64,27.66479]
[1641321464383,33.45896679,168.71,168.64,27.66479]
[1641321464985,33.45896679,168.71,168.64,30.66479]
[1641321465188,33.45896679,168.71,168.64,27.66479]
[1641321465384,12.5409554,168.68,168.64,27.66479]
[1641321466586,12.5409554,168.67,168.64,27.66479]
[1641321466985,33.45896679,168.71,168.66,3.0]
[1641321467186,33.45896679,168.71,168.66,8.145]
[1641321467388,6.679e-05,168.71,168.7,27.66479]
[1641321467586,11.84866854,168.75,168.7,27.66479]
[1641321467786,77.78117895,168.79,168.7,27.66479]
[1641321468688,77.78117895,168.79,168.64,30.66479]
[1641321468888,86.66317895,168.79,168.64,27.66479]
[1641321469087,8.2609753,168.78,168.71,2.12596481]
[1641321469286,27.66479,168.76,168.71,2.12596481]
[1641321469886,27.66479,168.76,168.65,2.12596481]
[1641321469887,3.0,168.74,168.65,2.12596481]
[1641321470089,6.336,168.74,168.65,2.12596481]
[1641321470289,3.0,168.73,168.65,2.12596481]
[1641321470488,3.0,168.71,168.65,2.12596481]
[1641321470688,3.0,168.7,168.65,2.12596481]
[1641321470888,7.846,168.7,168.55,23.22987094]
[1641321471087,3.0,168.67,168.55,23.22987094]
[1641321471292,27.66479,168.65,168.55,23.22987094]
[1641321471490,36.79179,168.65,168.55,23.22987094]
[1641321471694,33.79179,168.65,168.55,23.22987094]
[1641321471891,3.0,168.63,168.53,2.12596481]
[1641321472491,3.0,168.62,168.53,2.12596481]
[1641321472891,3.0,168.62,168.52,10.58152243]
[1641321473093,3.0,168.63,168.52,10.58152243]
[1641321473291,27.66479,168.59,168.52,10.58152243]
[1641321473492,3.0,168.58,168.52,10.58152243]
[1641321473692,33.63279,168.59,168.52,10.58152243]
[1641321474195,33.63279,168.59,168.52,2.12596481]
[1641321474394,27.66479,168.59,168.52,2.12596481]
[1641321474794,15.44934277,168.64,168.52,2.12596481]
[1641321474995,3.0,168.63,168.47,23.23014783]
[1641321475195,3.0,168.62,168.47,26.23014783]
[1641321475394,3.0,168.63,168.51,27.66479]
[1641321475595,3.0,168.62,168.51,27.66479]
[1641321475799,3.0,168.61,168.51,27.66479]
[1641321475998,3.0,168.63,168.47,23.23014783]
[1641321476296,3.0,168.58,168.47,23.23014783]
[1641321476498,6.104,168.58,168.48,2.12596481]
[1641321477296,6.104,168.58,168.47,2.12596481]
[1641321477496,27.66479,168.57,168.47,2.12596481]
[1641321478096,27.66479,168.59,168.47,2.12596481]
[1641321478296,3.0,168.65,168.5,3.0]
[1641321478498,3.0,168.66,168.5,3.0]
[1641321478697,3.0,168.66,168.51,3.0]
[1641321478895,3.0,168.67,168.51,5.987]
[1641321479098,11.2996058,168.67,168.51,8.11296481]
[1641321479299,3.0,168.66,168.51,8.11296481]
[1641321479496,27.66479,168.62,168.51,35.77775481]
[1641321479897,27.66479,168.65,168.51,35.77775481]
[1641321480399,3.0,168.61,168.52,2.12596481]
[1641321480598,3.0,168.6,168.52,2.12596481]
[1641321480797,3.0,168.59,168.52,2.12596481]
[1641321480997,7.927,168.61,168.52,2.12596481]
[1641321481397,27.66479,168.57,168.52,2.12596481]
[1641321481600,33.26579,168.57,168.52,2.12596481]
[1641321481798,3.0,168.56,168.47,10.49889264]
[1641321482000,3.0,168.55,168.47,10.49889264]
[1641321482199,3.0,168.52,168.47,10.49889264]
[1641321482398,6.471,168.52,168.47,10.49889264]
[1641321482599,6.471,168.52,168.42,23.12056573]
[1641321483398,34.13579,168.52,168.42,23.12056573]
[1641321483600,6.471,168.52,168.42,23.12056573]
[1641321483801,4.18447124,168.53,168.45,3.0]
[1641321483999,4.18447124,168.53,168.45,6.353]
[1641321484802,4.18447124,168.53,168.42,2.12596481]
[1641321485001,5.922,168.53,168.46,2.12596481]
[1641321485400,27.66479,168.5,168.46,2.12596481]
[1641321486205,4.18447124,168.49,168.48,4.18513327]
[1641321486406,8.91147124,168.49,168.48,4.18513327]
[1641321486607,8.91147124,168.49,168.48,3.34116324]
[1641321487407,2.06829126,168.49,168.41,10.49889264]
[1641321488608,3.0,168.47,168.41,10.49889264]
[1641321488807,3.0,168.46,168.41,10.49889264]
[1641321489208,3.0,168.45,168.41,10.49889264]
[1641321489411,27.66479,168.42,168.36,33.48287214]
[1641321489610,30.66479,168.42,168.36,33.48287214]
[1641321489809,3.0,168.41,168.36,33.48287214]
[1641321490009,4.273,168.41,168.36,33.48287214]
[1641321490510,3.0,168.37,168.36,33.48287214]
[1641321490712,9.156,168.37,168.33,43.98176478]
[1641321490911,6.156,168.37,168.33,43.98176478]
[1641321491812,3.0,168.38,168.33,43.98176478]
[1641321492116,27.66479,168.42,168.3,56.60343787]
[1641321492313,3.0,168.36,168.3,43.98176478]
[1641321493111,3.0,168.37,168.3,43.98176478]
[1641321493311,3.0,168.38,168.3,43.98176478]
[1641321493511,30.66479,168.39,168.3,43.98176478]
[1641321493912,3.0,168.37,168.33,33.48287214]
[1641321494114,3.0,168.35,168.33,33.48287214]
[1641321494822,3.0,168.34,168.3,33.48287214]
[1641321495016,3.0,168.35,168.3,33.48287214]
[1641321495215,27.66479,168.39,168.3,33.48287214]
[1641321495216,3.0,168.36,168.3,33.48287214]
[1641321495416,27.66479,168.42,168.3,39.19387214]
[1641321495615,3.0,168.43,168.33,27.66479]
[1641321495817,30.66479,168.44,168.33,27.66479]
[1641321496623,27.66479,168.44,168.33,27.66479]
[1641321496821,33.48287214,168.46,168.33,27.66479]
[1641321497221,61.0495,168.47,168.4,12.56158484]
[1641321497424,3.0,168.44,168.4,18.02458484]
[1641321498221,3.0,168.41,168.4,18.02458484]
[1641321498422,3.0,168.44,168.41,2.12596481]
[1641321498622,3.0,168.45,168.41,2.12596481]
[1641321498823,3.0,168.42,168.41,2.12596481]
[1641321499021,3.0,168.45,168.41,2.12596481]
[1641321499221,27.66479,168.46,168.4,12.56158484]
[1641321499621,12.56158484,168.48,168.4,18.78058484]
[1641321500521,60.2063,168.56,168.42,12.56158484]
[1641321500522,12.56158484,168.51,168.42,12.56158484]
[1641321501121,15.56158484,168.51,168.42,12.56158484]
[1641321501523,27.66479,168.5,168.43,12.56158484]
[1641321502023,30.66479,168.5,168.43,12.56158484]
[1641321502625,3.0,168.48,168.42,12.56158484]
[1641321503022,3.0,168.45,168.42,12.56158484]
[1641321503225,3.0,168.44,168.42,12.56158484]
[1641321503423,3.0,168.44,168.38,33.48287214]
[1641321503624,30.66479,168.43,168.37,12.56158484]
[1641321503824,27.66479,168.43,168.37,12.56158484]
[1641321504023,30.66479,168.43,168.37,12.56158484]
[1641321504524,27.66479,168.43,168.37,12.56158484]
[1641321504724,2.07818051,168.42,168.35,12.56158484]
[1641321505727,14.63976535,168.42,168.34,12.56158484]
[1641321506427,12.56158484,168.42,168.34,12.56158484]
[1641321506631,27.66479,168.43,168.35,3.0]
[1641321506928,27.66479,168.43,168.34,2.12596481]
[1641321507529,27.66479,168.43,168.42,12.56158484]
[1641321507731,27.66479,168.43,168.39,23.87865698]
[1641321508329,27.66479,168.43,168.34,50.11638895]
[1641321508529,27.66479,168.43,168.31,26.10176289]
[1641321508930,30.66479,168.43,168.31,23.10176289]
[1641321509231,27.66479,168.43,168.32,2.12596481]
[1641321509630,27.66479,168.4,168.32,2.12596481]
[1641321510333,27.66479,168.4,168.31,20.97579808]
[1641321510334,27.66479,168.4,168.33,2.12596481]
[1641321510933,27.66479,168.4,168.34,2.12596481]
[1641321511536,30.66479,168.4,168.34,2.12596481]
[1641321511934,30.66479,168.4,168.35,2.12596481]
[1641321512636,27.66479,168.4,168.35,2.12596481]
[1641321512836,27.66479,168.4,168.36,2.12596481]
[1641321513436,27.66479,168.4,168.37,2.12596481]
[1641321514439,27.66479,168.4,168.38,2.12596481]
[1641321515140,27.66479,168.4,168.39,2.12596481]
[1641321516342,27.66479,168.43,168.33,3.0]
[1641321516641,3.0,168.5,168.34,5.172]
[1641321516841,3.0,168.51,168.39,3.0]
[1641321517041,16.09850099,168.52,168.39,8.801]
[1641321517242,13.09850099,168.52,168.39,8.801]
[1641321517441,16.09850099,168.52,168.39,5.801]
[1641321517641,27.66479,168.48,168.39,5.801]
[1641321518042,27.66479,168.48,168.35,63.5438]